Cogmind - Beta 14 @@@ ROGUE MODE // 2024.09.14 @ 01:47:43 Player: Dull Result: Destroyed by D-53 Grenadier with Mini Grenade Launcher Performance ------------- Evolutions (0) 0 Regions Visited (2) 400 Robots Destroyed (20) 100 Value Destroyed (462) 462 Prototype IDs (0) 0 Alien Tech Used (0) 0 Bonus (0) 0 TOTAL SCORE: 962 Bonus ------- None Cogmind --------- Core Integrity 0/250 Matter 250/300 Energy 123/125 System Corruption 2% Temperature Cool (0) Movement Rolling (140) Ox4 Location -10/Mines Parts ------- > --- POWER (1) -------- Light Ion Engine > --- PROPULSION (2) --- Wheel Wheel > --- UTILITY (2) ------ Cooling System Huge Storage Unit > --- WEAPON (2) ------- Grenade Launcher > --- INVENTORY (25) --- Ion Engine Light Treads Wheel Improved Hover Unit Improved Hover Unit Improved Hover Unit Improved Hover Unit Cooling System Cooling System Terrain Scanner Field Recycling Unit (0) Decoy Drone Bay EM Pulse Gun Small Laser Small Laser Particle Gun Light Assault Rifle Mining Laser Mining Claw Peak State ------------ > --- POWER ------------ Light Ion Engine > --- PROPULSION ------- Wheel Wheel > --- UTILITY ---------- Cooling System Huge Storage Unit > --- WEAPON ----------- Small Laser Particle Gun > --- INVENTORY -------- Ion Engine Light Treads Wheel Improved Hover Unit Improved Hover Unit Improved Hover Unit Improved Hover Unit Cooling System Cooling System Terrain Scanner Field Recycling Unit Decoy Drone Bay EM Pulse Gun Small Laser Small Laser Light Assault Rifle Grenade Launcher Mining Laser Mining Claw [Rating: 12] Favorites ----------- Power Light Ion Engine Engine Light Ion Engine Propulsion Light Treads Treads Light Treads Leg Aluminum Leg Wheel Wheel Utility Huge Storage Unit Device Cooling System Storage Huge Storage Unit Weapon Medium Laser Energy Gun Medium Laser Ballistic Gun Light Assault Rifle Launcher Grenade Launcher Build | -11 -10 -10 ------- Run | Yrd Mat Min Slots Evolved . | . . . Power . | . . . Propulsion . | . . . Utility . | . . . Weapon . | . . . Parts Attached 25 | 4 18 3 Power 3 | . 3 . Engine 3 | . 3 . Core . | . . . Reactor . | . . . Propulsion 10 | 3 6 1 Treads 5 | 3 2 . Leg 2 | . 2 . Wheel 3 | . 2 1 Hover . | . . . Flight . | . . . Utility 4 | . 4 . Device 2 | . 2 . Storage 2 | . 2 . Processor . | . . . Hackware . | . . . Protection . | . . . Artifact . | . . . Weapon 8 | 1 5 2 Energy Gun 6 | 1 4 1 Energy Cannon . | . . . Ballistic Gun 1 | . 1 . Ballistic Cannon . | . . . Launcher 1 | . . 1 Special Weapon . | . . . Impact Weapon . | . . . Slashing Weapon . | . . . Piercing Weapon . | . . . Special Melee Weapon . | . . . Unidentified Prototypes . | . . . Parts Lost 7 | . 6 1 Power 2 | . 2 . Propulsion 2 | . 2 . Utility . | . . . Weapon 3 | . 2 1 Highest Loss Streak 5 | . 5 1 To Critical Strikes . | . . . Average Slot Usage (%) 92 | . 90 99 Engine 10 | . 9 14 Treads 9 | . 11 . Leg 6 | . 8 . Wheel 10 | . 6 28 Device 10 | . 9 14 Storage 15 | . 16 14 Energy Gun 22 | . 23 18 Ballistic Gun 3 | . 4 . Launcher 1 | . . 9 Peak Build Rating 12 | 6 11 12 Average Rating 9 | 6 8 11 On Entrance 7 | 6 6 11 Naked Turns . | . . . Heaviest Build 97 | 12 97 89 Greatest Support 40 | 40 40 20 Greatest Overweight (x) 8 | . 8 4 Average Overweight (x) 3 | . 3 4 Largest Inventory Capacity 25 | 8 25 25 Average Capacity 22 | 8 21 25 Most Carried 20 | 7 18 20 Average Carried 14 | 6 13 19 Final Capacity 25 | 8 25 25 Final Carried 20 | 6 18 20 Class Distribution -------------------- 97% | Mutant Dominant Class ---------------- Mutant | -10/Materials Mutant | -10/Mines Resources | -11 -10 -10 ----------- Run | Yrd Mat Min Matter Collected 451 | 240 181 30 Remotely . | . . . Salvage Created 808 | 120 688 . Parts 43 | 8 35 . Haulers Intercepted . | . . . Recyclers Shooed 2 | 1 1 . Parts Field Recycled . | . . . Retrieved Matter . | . . . Parts Self-Destructed . | . . . Prevented . | . . . Kills | -11 -10 -10 ------- Run | Yrd Mat Min Combat Hostiles Destroyed 14 | . 14 . Guns 12 | . 12 . Classes Destroyed 5 | 2 3 . Worker 1 | . 1 . Tunneler 1 | 1 . . Recycler 4 | 1 3 . Swarmer 3 | . 3 . Grunt 11 | . 11 . Best Kill Streak 6 | 2 6 . Combat Bots Only 3 | . 3 . Max Kills in Single Turn 1 | 1 1 . Gunslinging . | . . . Exploded . | . . . Melee . | . . . Uniques/NPCs Destroyed . | . . . Combat | -11 -10 -10 -------- Run | Yrd Mat Min Hostile Shots Fired 93 | . 90 3 Missed 18 | . 18 . Damage Taken 1011 | . 888 123 Core 279 | . 231 48 Absorbed by Shields . | . . . Regen/Repaired (Parts) 27 | . 27 . Core Remaining (%) 100 | 100 . . Volleys Fired 78 | 4 72 2 Largest 2 | 2 2 2 Hottest 100 | 90 100 70 Shots Fired 140 | 8 128 4 Gun 138 | 8 128 2 Cannon . | . . . Launcher 2 | . . 2 Special . | . . . Kinetic 13 | . 13 . Thermal 121 | 4 115 2 Explosive 2 | . . 2 Electromagnetic 4 | 4 . . Robot Hit Streak 15 | 5 15 . Robot Miss Streak 4 | 1 4 . Penetration Max . | . . . Secondary Targets . | . . . Shots Hit Robots 95 | 5 90 . Core Hits 40 | 3 37 . Critical Kills . | . . . Critical Parts Destroyed . | . . . Critical Strikes 3 | . 3 . Burn 3 | . 3 . Melee Attacks . | . . . Impact . | . . . Slashing . | . . . Piercing . | . . . Sneak Attacks . | . . . Combat Hostiles . | . . . Follow-up Attacks . | . . . Damage Inflicted 1141 | 63 1078 . Guns 1138 | 63 1075 . Cannons . | . . . Explosions . | . . . Melee . | . . . Ramming 3 | . 3 . Kinetic 62 | . 62 . Thermal 1025 | 12 1013 . Explosive . | . . . Electromagnetic 51 | 51 . . Impact . | . . . Slashing . | . . . Piercing . | . . . Highest Corruption 2 | . 2 2 Average Corruption 2 | . 2 2 Corruption Purged . | . . . Corruption Blocked . | . . . Effects 14 | . 10 4 Message Errors 1 | . 1 . Matter Fused 4 | . 3 1 Heat Flow Errors 1 | . 1 . Energy Discharges 6 | . 3 3 Data Loss (minor) 1 | . 1 . Alerts 1 | . 1 . Overload Shots . | . . . Overflow Damage . | . . . Projectiles . | . . . Explosions . | . . . Melee . | . . . Knockbacks . | . . . Impact . | . . . Kinetic . | . . . Secondary . | . . . Self-Inflicted Damage 16 | . . 16 Shots 1 | . . 1 Rammed . | . . . Targets Rammed 1 | . 1 . Kicked 1 | . 1 . Crushed . | . . . Highest Temperature 232 | 60 232 . Average Temperature 77 | 24 89 . Received Heat Transfer 507 | . 507 . Siege Activations . | . . . Robots Corrupted . | . . . Combat Hostiles . | . . . Parts Fried . | . . . Impact Corruptions . | . . . Robots Melted 2 | . 2 . Combat Hostiles 2 | . 2 . Parts Melted 6 | . 6 . Heat Transferred 3174 | 37 3137 . Parts Sabotaged . | . . . Parts Stolen . | . . . Parts Stripped . | . . . Power Chain Reactions . | . . . Alert | -11 -10 -10 ------- Run | Yrd Mat Min Peak Influence 205 | 10 205 52 Initial 36 | . 6 36 Average 86 | 4 100 43 Maximum Alert Level 1 | . 1 . Low Security (%) 90 | 100 87 100 Level 1 9 | . 12 . Level 2 . | . . . Level 3 . | . . . Level 4 . | . . . Level 5 . | . . . High Security . | . . . Max Security . | . . . Squads Dispatched 5 | . 5 . Investigation 4 | . 4 . Extermination . | . . . Reinforcement 1 | . 1 . Assault . | . . . Garrison . | . . . Intercept . | . . . Searches Triggered . | . . . Construction Impeded . | . . . Haulers Reinforced . | . . . Active Scanning Responses . | . . . Cargo Convoy Interrupts . | . . . Stealth | -11 -10 -10 --------- Run | Yrd Mat Min Distress Signals 3 | . 3 . Communications Jammed . | . . . Distress Signals . | . . . Times Spotted 27 | . 25 2 Peak Tracking Total 5 | . 5 2 Tactical Retreats 1 | . 1 . Traps | -11 -10 -10 ------- Run | Yrd Mat Min Traps Triggered 4 | . 4 . Indirectly . | . . . Trap Hack Attempts . | . . . Triggered . | . . . Disarmed . | . . . Reprogrammed . | . . . Reused . | . . . Traps Extracted . | . . . Installed . | . . . Triggered . | . . . Machines | -11 -10 -10 ---------- Run | Yrd Mat Min Machines Disabled . | . . . Max in Single Turn . | . . . Machines Repaired . | . . . Machines Dismantled . | . . . Machines Sabotaged . | . . . Overloaded Fab Kills . | . . . Hacking | -11 -10 -10 --------- Run | Yrd Mat Min Machines Accessed 8 | . 7 1 Terminals 5 | . 5 . Fabricators . | . . . Repair Stations 1 | . 1 . Recycling Units 1 | . 1 . Scanalyzers . | . . . Garrison Access . | . . . Total Hacks 27 | . 26 1 Successful 9 | . 8 1 Failed 18 | . 18 . Catastrophic 1 | . 1 . Database Lockouts . | . . . Manual 13 | . 13 . Terminals 20 | . 20 . Fabricators . | . . . Repair Stations 3 | . 3 . Recycling Units 3 | . 3 . Scanalyzers . | . . . Garrison Access . | . . . Terminal Hacks 4 | . 3 1 Part Schematic 2 | . 2 . Robot Analysis 1 | . 1 . Open Door 1 | . . 1 Fabricator Hacks . | . . . Repair Station Hacks 2 | . 2 . Scan Component 1 | . 1 . Repair 1 | . 1 . Recycling Unit Hacks 1 | . 1 . Retrieve Components 1 | . 1 . Scanalyzer . | . . . Garrison Access Hacks . | . . . Unauthorized Hacks 2 | . 2 . Terminals . | . . . Fabricators . | . . . Repair Stations . | . . . Recycling Units 2 | . 2 . Reject 1 | . 1 . Mask 1 | . 1 . Scanalyzers . | . . . Garrison Access . | . . . Data Cores Recovered . | . . . Used . | . . . Hacking Detections 6 | . 6 . Full Trace Events 5 | . 5 . Feedback Events . | . . . Feedback Blocked . | . . . Robot Schematics Acquired . | . . . Robots Built . | . . . Authchips . | . . . Time . | . . . Total Robot Build Rating . | . . . Part Schematics Acquired 2 | . 2 . Parts Built . | . . . Authchips . | . . . Time . | . . . Total Part Build Rating . | . . . Parts Repaired 1 | . 1 . Time 32 | . 32 . Parts Recycled . | . . . Recycled Matter . | . . . Retrieved Matter . | . . . Retrieved Components 3 | . 3 . Parts Scanalyzed . | . . . Part Schematics Acquired . | . . . Parts Damaged . | . . . Bothacking | -11 -10 -10 ------------ Run | Yrd Mat Min Used RIF Installer . | . . . Robots Hacked . | . . . Non-combat . | . . . Combat . | . . . Robot Hacks Applied . | . . . Relay Couplers Released . | . . . Fabnet Peak Effective % . | . . . Robots Rewired . | . . . Allies Hacked . | . . . Hacks Repelled . | . . . Allies | -11 -10 -10 -------- Run | Yrd Mat Min Total Allies 2 | . . 2 Largest Group 2 | . . 2 Highest-Rated Group 41 | . . 41 Highest-Rated Ally 31 | . . 31 Total Orders . | . . . Ally Attacks 1 | . . 1 Total Damage 21 | . . 21 Kills . | . . . Allies Corrupted . | . . . Allies Melted . | . . . Intel | -11 -10 -10 ------- Run | Yrd Mat Min Robot Analysis Total 1 | . 1 . Derelict Logs Recovered 1 | . . 1 Drone Launches . | . . . Drone Recoveries . | . . . Exploration | -11 -10 -10 ------------- Run | Yrd Mat Min Turns Passed 1852 | 47 1439 366 Spaces Moved 786 | 15 532 239 Core 1 | . 1 . Treads 193 | 14 179 . Legs 83 | 1 82 . Wheels 509 | . 270 239 Hover . | . . . Flight . | . . . Fastest Speed 120 | 120 160 140 Average Speed 189 | 157 212 140 Slowest Speed 680 | 160 680 140 Overloaded Moves . | . . . Propulsion Burnouts . | . . . Robots Hopped . | . . . Cave-ins Triggered . | . . . Exploration Rate (%) 39 | 2 74 41 Regions Visited 2 Branch Regions 1 Pre-discovered Areas . | . . . Known Exits Taken . | . . . Unknown Exits Taken 2 | 1 1 . Scrap Searched 1 | . . 1 Spaces Dug 18 | . . 18 Terrain Destroyed 18 | . . 18 Melee . | . . . Projectile . | . . . AOE 18 | . . 18 Terrain Rammed . | . . . Walls Destroyed . | . . . Machines Disabled . | . . . Actions | -11 -10 -10 --------- Run | Yrd Mat Min Total 1007 | 29 712 266 Wait 93 | 5 67 21 Move 784 | 14 531 239 Hop . | . . . Pick Up 21 | 1 19 1 Fast Attach 5 | . 5 . Attach 8 | . 8 . Detach . | . . . Swap 12 | 4 5 3 Drop 5 | 1 4 . Fire 78 | 4 72 2 Melee . | . . . Ram . | . . . Kick 1 | . 1 . Crush . | . . . Escape Stasis . | . . . Rewire . | . . . Trap . | . . . Miscellaneous . | . . . Route ------- -11/Scrapyard -10/Materials (discovered 3 exits: [*Mat x2] / *Min) -10/Mines (discovered 2 exits: [*Mat x2]) History --------- Turn | Location | Event 4 | -11/Scrapyard | Discovered new exit (range 3) 48 | -11/Scrapyard | Entered Materials 253 | -10/Materials | Discovered new exit (range 5) 310 | -10/Materials | Build established: Mutant 956 | -10/Materials | Discovered new exit (range 15) 976 | -10/Materials | Core integrity fell below 50% 1048 | -10/Materials | Derelicts attacked the area 1056 | -10/Materials | Core integrity fell below 20% 1065 | -10/Materials | Lost 5 parts (1p2n2w) 1250 | -10/Materials | Repaired Cooling System 1436 | -10/Materials | Discovered new exit (range 7) 1487 | -10/Materials | Entered Mines 1501 | -10/Mines | Assembled infested the area 1538 | -10/Mines | Discovered new exit (range 14) 1557 | -10/Mines | Found the Drone Emporium 1563 | -10/Mines | Found Prototype Device 1701 | -10/Mines | Discovered new exit (range 5) 1713 | -10/Mines | Learned Materials non-interactive machine intel 1853 | -10/Mines | Destroyed by D-53 Grenadier with Mini Grenade Launcher Last Messages --------------- 01563_ Acquired Prototype Device. 01670_ The unstable cave ceiling collapses. 01678_ System corrupted: Matter fused (-9). 01694_ K-01 Serf collects debris. 01701_ Searching scrap... 01701_ Found Lrg. Battery. 01701_ Found Mining Laser. 01701_ Found Authchip [R/NC]. 01701_ Found 30 Matter. 01701_ EXIT=FOUND 01702_ Acquired 30 matter. 01713_ Acquired derelict log, extracted data. Data stored: Materials non-interactive machine intel. 01724_ A pair of derelicts emerge from the shadows: "We're, um, lost. You wouldn't happen to know the way out of here, would you?" 01757_ System corrupted: Energy discharge (-30). 01817_ System corrupted: Energy discharge (-42). 01848_ The unstable cave ceiling collapses. 01848_ Sml. Laser destroyed. 01852_ U-05 Engineer lays Concrete. Map ----- +----------------------------------------------------+ | ?????????????????????????????????????????????????? | | ?????????????????????????????????????????????????? | | ?????????????????????????????????????????????????? | | ?????????????????????????????????????????????????? | | ?????????????????????????????????????????????????? | | ?????????????????????????????????????????????????? | | ?????????????????????????????????????????????????? | | ?????????????????????????????????????????????????? | | ????????????????????? ??????????????????????????? | | ????????????????????? ??????????????????????????? | | ????????????????????? ??????????????????????????? | | ????????????????????? ??????????????????????????? | | ????????????????????#% ??????????????????????????? | | ??????????????? ????# ??????????????????????????? | | ???????????????? ##?# %??????????????????????????? | | ????????????????? ## "??????????????????????????? | | ??????????????????%%%% ??????????????????????????? | | ??????????????????? % %??????????????????????????? | | ?????????????????### %%??????????????????????????? | | ?????????????????# #r ###????????????????????????? | | ?????????????????## d# #????????????????????????? | | ?????????????????# u ##???????????????????????? | | ????????????????# # #???????????????????????? | | ?????????????????# ##??????????????????????? | | ?????????????????# g ##### #????????????????? | | ?????????????????## @ #????????????????? | | ?????????????????# #############?????????? | | ?????????????????### # ##??## ## ##????????? | | ???????????????????## ## #??## #???###??? | | ????????????????????##?# #??# #??## ##? | | ???????????????????????# #?## #???# #? | | ?????????????????????### ### #????# #? | | ????????????????????## z## #????# ## | | ???????????????????## ###### ##???# # | | ???????????????????# ##????## #???# | | ???????????????????# ####??????# ##??## | | ???????????????????# ##?????????## ##??### | | ???????????????????## ##????##?????# #????# | | ????????????????????# #????######### #????# | | ????????????????????# #???## # # ##??## | | ????????????????????# #???# #### | | ????????????????????# #??## | | ??????????######????# #### # """ # | | ?????????## ##???# ## ## """ ## | | ????????## ##### # # # ###### """ #? | | ??????### ######????#### ##? | | ?????## ###????????????# ### #?? | | ????## ##??????????????# ### #?? | | ???## ## ##???????????????# #?? | | #### #### #????????????????# #####?? | +----------------------------------------------------+ Best States ------------- Heat Dissipation 47 Energy Generation 10 Energy Capacity 125 Matter Stores 300 Matter Capacity 300 Sight Range 16 Terrain Scan Density 10 Evasion (%) 40 Recoil Reduction 2 Item Schematics ----------------- Huge Storage Unit | -10/Materials | Hacked Lrg. Storage Unit | -10/Materials | Hacked Robot Schematics ------------------ None Fabricated ------------ Nothing Alien Tech Used ----------------- None Achievements -------------- None Challenges ------------ None Game ------ Seed MappingFluxSuperbattery Manual? 0 Play Time 00:14:41 Cumulative 73.5 hours Start 2024.09.14 @ 01:30:44 End 2024.09.14 @ 01:47:43 Sessions 1 Manual Loads 0 Difficulty Rogue Special Mode None Game No. 98 Rogue 98 Adventurer 0 Explorer 0 Win Type - Total 1 Types 1/0/0/0/0/0/0/0/0 Lore% 16 Gallery% 53 Achievement% 42 Wizard Run 0 Options --------- Layout 0 ASCII 0 Keyboard 0 Movement Mouse Keybinds 1 Fullscreen 1 Font 18/TerminusBold Map View 76x50 Zoom Use 0% Tactical HUD 1 Map Filters NONE Filters NONE Steam 1 RUN: 7204d657-926d-44aa-bc07-b7b85d799d87